bitfinex-derivatives/quotes_SOLF0:USTF0_20250227
["timestamp","ask_amount","ask_price","bid_price","bid_amount"]
[1740692403686,0.04862796,137.82,137.79,24.03768436]
[1740692404184,7.2654,137.8,137.79,24.03768436]
[1740692404779,7.2654,137.8,137.79,10.59338436]
[1740692404980,21.78,137.8,137.78,73.81796948]
[1740692405185,7.2659,137.79,137.78,73.81796948]
[1740692405481,19.4459,137.79,137.78,8.406e-05]
[1740692405677,41.2259,137.79,137.78,8.406e-05]
[1740692406787,42.56205067,137.79,137.78,8.406e-05]
[1740692407483,64.47205067,137.79,137.78,8.406e-05]
[1740692407689,7.2689,137.74,137.72,119.09722124]
[1740692407889,34.09,137.79,137.72,119.09722124]
[1740692408080,1.33658757,137.78,137.72,119.09722124]
[1740692408691,23.11658757,137.78,137.72,119.09722124]
[1740692408892,0.05189864,137.76,137.74,0.0474127]
[1740692409085,1.33658757,137.77,137.63,7.2743]
[1740692409390,82.88838757,137.77,137.63,7.2743]
[1740692409690,1.33658757,137.76,137.61,123.00382124]
[1740692410288,0.04699799,137.7,137.67,0.05016509]
[1740692410488,1.33658757,137.76,137.61,123.00382124]
[1740692410793,0.05381088,137.7,137.67,0.05186571]
[1740692410987,1.33658757,137.76,137.61,123.00382124]
[1740692411292,0.04587027,137.7,137.67,0.05082691]
[1740692411488,12.18,137.75,137.61,123.00382124]
[1740692411791,0.04800429,137.7,137.67,7.32499333]
[1740692412395,0.04800429,137.7,137.67,0.05279333]
[1740692413794,0.04800429,137.7,137.68,7.2712]
[1740692413989,0.04800429,137.7,137.67,0.05279333]
[1740692415286,0.04800429,137.7,137.69,7.2712]
[1740692415486,0.04800429,137.7,137.67,0.05279333]
[1740692416394,0.04800429,137.7,137.67,7.32469333]
[1740692416791,0.04800429,137.7,137.67,0.05279333]
[1740692416995,7.2717,137.68,137.67,0.05279333]
[1740692417296,13.51698786,137.68,137.56,2.0242]
[1740692417496,1.33698786,137.67,137.56,2.0242]
[1740692417687,7.2735,137.65,137.56,2.0242]
[1740692418089,21.91,137.67,137.61,7.2754]
[1740692418296,1.3375351,137.66,137.61,7.2754]
[1740692418497,0.04975457,137.65,137.63,0.05544866]
[1740692418698,0.04975457,137.65,137.56,2.0242]
[1740692418889,1.33752847,137.66,137.63,0.048437]
[1740692419094,0.04901556,137.62,137.59,7.2765]
[1740692419295,1.33752847,137.66,137.63,0.05054949]
[1740692419496,1.33752847,137.66,137.56,2.0242]
[1740692419992,0.04609587,137.62,137.6,0.05462615]
[1740692420499,12.18,137.61,137.6,0.05462615]
[1740692422497,41.2554,137.61,137.6,0.05462615]
[1740692424299,19.4554,137.61,137.6,0.05462615]
[1740692424803,41.2554,137.61,137.6,0.05462615]
[1740692425200,63.1654,137.61,137.6,2.615e-05]
[1740692425403,72.096592,137.61,137.6,2.615e-05]
[1740692427209,64.50340914,137.61,137.6,2.615e-05]
[1740692427702,1.33800914,137.61,137.6,2.615e-05]
[1740692427898,0.04609587,137.62,137.6,2.615e-05]
[1740692428504,0.04609587,137.62,137.61,7.2754]
[1740692428706,12.2,137.69,137.6,2.615e-05]
[1740692428904,19.4717,137.69,137.5,207.28676756]
[1740692429105,19.4717,137.69,137.62,7.2746]
[1740692429402,12.2,137.69,137.5,207.28676756]
[1740692429706,0.05315482,137.61,137.58,0.05199616]
[1740692429902,12.2,137.69,137.58,0.05199616]
[1740692430107,197.64,137.71,137.58,190.88886756]
[1740692430309,197.64,137.71,137.59,1.842]
[1740692430602,204.9106,137.71,137.62,7.2745]
[1740692430807,197.64,137.71,137.59,1.842]
[1740692431002,0.0470597,137.66,137.64,0.04986066]
[1740692431209,197.64,137.71,137.64,0.04986066]
[1740692431409,0.05307284,137.66,137.64,0.04986066]
[1740692431610,197.64,137.71,137.64,0.04986066]
[1740692431801,0.05293854,137.66,137.64,0.04986066]
[1740692432003,7.2716,137.69,137.64,0.04986066]
[1740692432201,0.04650086,137.66,137.64,0.04986066]
[1740692432409,7.2718,137.68,137.64,0.04986066]
[1740692432711,0.05328946,137.66,137.64,0.04986066]
[1740692432910,7.2732,137.66,137.64,0.04986066]
[1740692433110,7.31971449,137.66,137.64,0.04986066]
[1740692434116,7.2733,137.65,137.64,0.04986066]
[1740692435999,7.2733,137.65,137.64,6.066e-05]
[1740692436606,29.0733,137.65,137.64,6.066e-05]
[1740692436807,30.41089223,137.65,137.64,6.066e-05]
[1740692438111,8.6109151,137.65,137.64,6.066e-05]
[1740692438310,7.2733,137.65,137.64,6.066e-05]
[1740692438511,0.04651449,137.66,137.64,6.066e-05]
[1740692439210,197.64,137.71,137.64,7.27396066]
[1740692439514,197.64,137.71,137.64,6.066e-05]
[1740692440307,0.04952083,137.69,137.66,7.2723]
[1740692440705,0.04952083,137.69,137.66,0.05499421]
[1740692441115,0.04952083,137.69,137.66,7.32779421]
[1740692441412,197.64,137.71,137.66,0.05499421]
[1740692442010,204.9103,137.71,137.67,7.2721]
[1740692442515,0.05056297,137.7,137.67,7.2721]
[1740692443213,0.05056297,137.7,137.66,0.05499421]
[1740692443716,7.32156297,137.7,137.66,0.05499421]
[1740692444311,0.05056297,137.7,137.66,0.05499421]
[1740692444912,0.05056297,137.7,137.67,7.2722]
[1740692445515,0.05056297,137.7,137.66,7.32769421]
[1740692445918,7.2719,137.68,137.66,0.05499421]
[1740692446217,0.05056297,137.7,137.66,0.05499421]
[1740692446623,7.2713,137.69,137.66,0.05499421]
[1740692446824,0.05056297,137.7,137.66,0.05499421]
[1740692447023,12.2,137.76,137.66,0.05499421]
[1740692447223,1.33665503,137.75,137.68,7.2717]
[1740692447423,12.2,137.76,137.69,1.86]
[1740692447923,7.2699,137.72,137.69,3.7685]
[1740692448123,197.74,137.77,137.71,0.04821279]
[1740692448124,0.04813481,137.74,137.71,0.04821279]
[1740692448314,7.31693481,137.74,137.71,0.04821279]
[1740692448518,0.04813481,137.74,137.71,0.04821279]
[1740692448924,0.04813481,137.74,137.71,7.31801279]
[1740692449123,197.74,137.77,137.71,0.04821279]
[1740692449922,197.74,137.77,137.74,7.2682]
[1740692450123,7.2668,137.78,137.74,7.2682]
[1740692450427,0.0461499,137.77,137.74,7.32255667]
[1740692450727,12.18,137.81,137.75,7.268]
[1740692450924,7.2662,137.79,137.75,7.268]
[1740692451226,219.65,137.85,137.74,7.32265667]
[1740692451423,7.2668,137.78,137.74,7.2683]
[1740692451625,80.09237375,137.88,137.74,192.34087859]
[1740692451820,80.09237375,137.88,137.8,0.05414457]
[1740692452220,0.03029781,137.85,137.8,0.05414457]
[1740692452419,80.09237375,137.95,137.74,192.34087859]
[1740692452627,7.2605,137.9,137.74,192.34087859]
[1740692453228,80.09237375,137.95,137.75,1.45190562]
[1740692453523,7.26,137.91,137.84,0.04845368]
[1740692453732,7.26,137.91,137.81,7.2645]
[1740692453920,7.26,137.91,137.86,0.05010182]
[1740692454123,80.09237375,137.95,137.86,0.05010182]
[1740692454320,1.33507216,137.94,137.81,7.2645]
[1740692454519,1.33507216,137.94,137.89,0.05467448]
[1740692454720,7.26,137.91,137.82,1.9595]
[1740692454921,7.26,137.91,137.9,0.05402459]
[1740692455123,34.09,137.91,137.82,1.9595]
[1740692455329,1.33532646,137.9,137.82,1.9595]
[1740692455830,7.2624,137.86,137.82,1.9595]
[1740692456329,0.0511,137.85,137.83,0.05237509]
[1740692457428,7.314,137.85,137.83,0.05237509]
[1740692458530,0.0511,137.85,137.83,0.05237509]
[1740692459030,7.3143,137.85,137.83,0.05237509]
[1740692459420,0.0511,137.85,137.83,0.05237509]
[1740692459624,19.4433,137.84,137.83,7.509e-05]
[1740692459832,41.3533,137.84,137.83,7.509e-05]
[1740692460832,64.44924023,137.84,137.83,7.509e-05]
[1740692461033,64.44921684,137.84,137.83,7.509e-05]
[1740692462435,86.33921684,137.84,137.83,7.509e-05]
[1740692462737,7.2686,137.74,137.73,1.914]
[1740692462933,12.18,137.77,137.73,1.914]
[1740692463826,0.05027632,137.76,137.74,0.05377916]
[1740692465136,7.31807632,137.76,137.74,0.05377916]
[1740692465330,0.05027632,137.76,137.74,0.05377916]
[1740692465728,7.268,137.75,137.74,0.05377916]
[1740692466839,7.2703,137.71,137.69,1.9542]
[1740692467033,231.67,137.77,137.67,1.9499]
[1740692467333,2.94082475,137.76,137.67,1.9499]
[1740692467535,1.33662475,137.75,137.67,1.9499]
[1740692468131,0.04760381,137.72,137.67,1.9499]
[1740692468338,0.04760381,137.72,137.7,0.05061098]
[1740692468639,209.76,137.77,137.7,0.05061098]
[1740692469633,7.269,137.74,137.7,0.05061098]
[1740692469840,0.04739688,137.75,137.7,0.05061098]
[1740692470332,0.04739688,137.75,137.7,1.098e-05]
[1740692470739,7.2702,137.71,137.7,1.098e-05]
[1740692471134,29.0502,137.71,137.7,1.098e-05]
[1740692471334,7.2702,137.71,137.7,1.098e-05]
[1740692472230,7.31788456,137.72,137.7,1.098e-05]
[1740692472541,0.04798456,137.72,137.7,1.098e-05]
[1740692473439,7.31758456,137.72,137.7,1.098e-05]
[1740692473638,0.04798456,137.72,137.7,1.098e-05]
[1740692474437,7.31798456,137.72,137.7,1.098e-05]
[1740692474637,0.04798456,137.72,137.7,1.098e-05]
[1740692476036,7.2702,137.71,137.7,1.098e-05]
[1740692477441,0.04798456,137.72,137.7,1.098e-05]
[1740692481538,7.2702,137.71,137.7,1.098e-05]
[1740692482547,0.04798456,137.72,137.7,1.098e-05]
[1740692482937,7.31768456,137.72,137.7,1.098e-05]
[1740692483141,0.04798456,137.72,137.7,1.098e-05]
[1740692483443,22.0085,137.78,137.7,1.098e-05]
[1740692483444,7.2694,137.73,137.7,1.098e-05]
[1740692483750,21.91,137.78,137.7,1.098e-05]
[1740692484444,0.05243791,137.75,137.7,1.098e-05]
[1740692484752,7.2694,137.73,137.7,1.098e-05]
[1740692485247,7.2702,137.71,137.7,1.098e-05]
[1740692485753,0.05265256,137.72,137.7,1.098e-05]
[1740692485950,36.4437,137.78,137.7,1.098e-05]
[1740692486150,0.05558546,137.72,137.7,1.098e-05]
[1740692486346,36.4437,137.78,137.7,1.098e-05]
[1740692486551,0.04719986,137.72,137.7,1.098e-05]
[1740692486849,0.04586637,137.75,137.7,1.098e-05]
[1740692487051,7.2688,137.74,137.7,1.098e-05]
[1740692488247,0.04586637,137.75,137.7,1.96751098]
[1740692488447,0.04586637,137.75,137.71,1.8387]
[1740692488754,0.04586637,137.75,137.71,9.1085]
[1740692490351,7.31386637,137.75,137.71,9.1085]
[1740692490953,0.04586637,137.75,137.71,1.8387]
[1740692491154,7.2687,137.74,137.7,1.96751098]
[1740692491848,7.2692,137.73,137.7,1.96751098]
[1740692492956,7.2702,137.71,137.7,1.098e-05]
[1740692494452,19.4302,137.71,137.7,1.098e-05]
[1740692495854,63.1202,137.71,137.7,1.098e-05]
[1740692496055,64.6384,137.71,137.7,1.098e-05]
[1740692496554,42.8584,137.71,137.7,1.098e-05]
[1740692496859,240.5384,137.71,137.7,1.098e-05]
[1740692497755,262.3184,137.71,137.7,1.098e-05]
[1740692498057,263.94274027,137.71,137.7,1.098e-05]
[1740692498454,271.53050101,137.71,137.7,1.098e-05]
[1740692499459,249.75050101,137.71,137.7,1.098e-05]
[1740692499662,271.53050101,137.71,137.7,1.098e-05]
[1740692499860,249.75050101,137.71,137.7,1.098e-05]
[1740692500061,271.53050101,137.71,137.7,1.098e-05]
[1740692501155,227.45240101,137.71,137.7,1.098e-05]
[1740692501358,217.1102,137.71,137.7,1.098e-05]
[1740692502862,217.1302,137.71,137.7,1.098e-05]
[1740692503162,262.15710391,137.71,137.7,1.098e-05]
[1740692503559,240.37710391,137.71,137.7,1.098e-05]
[1740692503755,239.0402,137.71,137.7,1.098e-05]
[1740692504169,204.9502,137.71,137.7,1.098e-05]
[1740692506666,226.8602,137.71,137.7,1.098e-05]
[1740692506860,248.6402,137.71,137.7,1.098e-05]
[1740692507866,270.5302,137.71,137.7,1.098e-05]
[1740692508065,271.86710226,137.71,137.7,1.098e-05]
[1740692508361,250.08710226,137.71,137.7,1.098e-05]
[1740692508958,271.86710226,137.71,137.7,1.098e-05]
[1740692509265,228.19710226,137.71,137.7,1.098e-05]
[1740692509465,226.8602,137.71,137.7,1.098e-05]
[1740692509865,228.19714971,137.71,137.7,1.098e-05]
[1740692510463,226.8602,137.71,137.7,1.098e-05]
[1740692510668,228.19723626,137.71,137.7,1.098e-05]
[1740692510866,226.8602,137.71,137.7,1.098e-05]
[1740692511558,228.19723267,137.71,137.7,1.098e-05]
[1740692514268,206.28723267,137.71,137.7,1.098e-05]
[1740692514869,204.9502,137.71,137.7,1.098e-05]
[1740692517271,270.5302,137.71,137.7,1.098e-05]
[1740692517469,273.28784147,137.71,137.7,1.098e-05]
[1740692517971,7.2754,137.61,137.6,1.8434]
[1740692518169,12.16,137.63,137.6,1.8434]
[1740692518567,19.4347,137.63,137.6,1.8434]
[1740692518763,12.16,137.63,137.6,1.8434]
[1740692519169,12.20694831,137.63,137.6,1.88994864]
[1740692520263,7.2754,137.61,137.6,1.88994864]
[1740692520467,7.2754,137.61,137.6,0.04654864]
[1740692523375,7.2754,137.61,137.6,4.864e-05]
[1740692523773,29.1854,137.61,137.6,4.864e-05]
[1740692523973,30.5234418,137.61,137.6,4.864e-05]
[1740692524178,52.3234418,137.61,137.6,4.864e-05]
[1740692525178,52.32355368,137.61,137.6,4.864e-05]
[1740692525780,59.91710934,137.61,137.6,4.864e-05]
[1740692526679,59.91724516,137.61,137.6,4.864e-05]
[1740692527582,38.11724516,137.61,137.6,4.864e-05]
[1740692528282,30.5236895,137.61,137.6,4.864e-05]
[1740692531279,8.6136895,137.61,137.6,4.864e-05]
[1740692531482,7.2754,137.61,137.6,4.864e-05]
[1740692532079,0.04694831,137.63,137.6,4.864e-05]
[1740692532279,12.18,137.66,137.6,4.864e-05]
[1740692532583,12.18,137.66,137.49,1.8638]
[1740692532882,12.18,137.66,137.57,7.2772]
[1740692533083,113.51523833,137.7,137.47,12.18]
[1740692533382,13.51735169,137.69,137.48,1.30690209]
[1740692533580,0.04964515,137.6,137.57,0.04917642]
[1740692533781,12.18,137.69,137.57,0.04917642]
[1740692534082,12.18,137.69,137.49,206.9067188]
[1740692534281,12.18,137.69,137.49,16.01785124]
[1740692534481,7.2752,137.62,137.49,16.01785124]
[1740692534684,4.2165,137.62,137.49,16.01785124]
[1740692535077,0.04593706,137.57,137.54,0.05341839]
[1740692535282,7.2755,137.61,137.49,228.7267188]
[1740692535584,7.2755,137.61,137.57,7.2774]
[1740692535783,7.2751,137.62,137.49,14.5632]
[1740692536179,12.18,137.69,137.47,12.18]
[1740692536383,7.2729,137.66,137.54,0.05030441]
[1740692536579,7.2729,137.66,137.54,190.88886756]
[1740692536785,7.2729,137.66,137.62,7.2745]
[1740692537284,7.2725,137.67,137.63,11.20270385]
[1740692537484,12.18,137.69,137.63,3.8742]
[1740692537883,12.18,137.69,137.64,0.05112463]
[1740692538282,197.68,137.71,137.64,0.05112463]
[1740692538885,197.68,137.71,137.67,7.2721]
[1740692539279,197.68,137.71,137.68,0.05383534]
[1740692539484,197.68,137.71,137.69,7.2709]
[1740692539781,197.68,137.71,137.68,0.05383534]
[1740692540779,219.59,137.71,137.68,0.05383534]
[1740692540979,7.2712,137.69,137.68,0.05383534]
[1740692541188,197.68,137.71,137.68,0.05383534]
[1740692541585,7.2712,137.69,137.68,0.05383534]
[1740692542989,29.1112,137.69,137.68,0.05383534]
[1740692543283,30.44845789,137.69,137.68,3.534e-05]
[1740692544377,8.60845789,137.69,137.68,3.534e-05]
[1740692544588,7.2712,137.69,137.68,3.534e-05]
[1740692548391,19.4312,137.69,137.68,3.534e-05]
[1740692549688,41.2712,137.69,137.68,3.534e-05]
[1740692552587,42.60844648,137.69,137.68,3.534e-05]
[1740692553288,42.60844753,137.69,137.68,3.534e-05]
[1740692553793,41.2712,137.69,137.68,3.534e-05]
[1740692554488,86.27843779,137.69,137.68,3.534e-05]
[1740692555690,64.49843779,137.69,137.68,3.534e-05]
[1740692555990,86.27843779,137.69,137.68,3.534e-05]
[1740692556295,64.49843779,137.69,137.68,3.534e-05]
[1740692558194,86.27879553,137.69,137.68,3.534e-05]
[1740692560199,7.2781,137.56,137.55,2.0009]
[1740692561599,7.2786,137.55,137.54,0.05056012]
[1740692562095,7.2786,137.55,137.54,6.012e-05]
[1740692568706,7.2784,137.56,137.54,6.012e-05]
[1740692570105,7.2786,137.55,137.54,6.012e-05]
[1740692570905,7.2782,137.56,137.54,6.012e-05]
[1740692571199,0.05524083,137.57,137.54,6.012e-05]
[1740692571699,7.33314083,137.57,137.54,6.012e-05]
[1740692571902,0.05524083,137.57,137.54,6.012e-05]
[1740692572102,7.2784,137.56,137.54,6.012e-05]
[1740692572299,0.05524083,137.57,137.54,6.012e-05]
[1740692572801,7.2772,137.58,137.54,6.012e-05]
[1740692573197,16.3796,137.59,137.54,7.27896012]
[1740692573399,9.1026,137.59,137.55,1.9816]
[1740692574003,7.33201927,137.58,137.55,1.9816]
[1740692574203,0.05471927,137.58,137.55,1.9816]
[1740692574606,7.2776,137.57,137.55,1.9816]
[1740692574799,5.8432,137.57,137.55,1.9816]
[1740692578002,0.05471927,137.58,137.55,1.9816]
[1740692578198,197.8,137.6,137.57,7.2771]
[1740692578402,58.62084846,137.67,137.55,1.9816]
[1740692578598,70.78084846,137.67,137.55,1.9816]
[1740692578802,7.2741,137.64,137.6,7.2759]
[1740692579108,7.2741,137.64,137.61,1.9864]
[1740692579405,7.2736,137.65,137.61,9.30959784]
[1740692579600,58.62084846,137.67,137.61,2.03429784]
[1740692580004,7.2748,137.63,137.61,2.03429784]
[1740692580297,58.62084846,137.67,137.61,2.03429784]
[1740692580505,7.2747,137.63,137.61,2.03429784]
[1740692580700,58.62084846,137.67,137.61,2.03429784]
[1740692580905,80.46084846,137.67,137.61,0.04789784]
[1740692581708,7.2745,137.63,137.61,0.04789784]
[1740692582204,80.46084846,137.67,137.61,0.04789784]
[1740692582408,7.2739,137.64,137.61,0.04789784]
[1740692582708,80.46084846,137.67,137.61,0.04789784]
[1740692582709,102.35084846,137.67,137.61,0.04789784]
[1740692582910,7.2749,137.62,137.61,0.04789784]
[1740692583109,80.46084846,137.67,137.61,0.04789784]
[1740692583311,7.2737,137.65,137.61,0.04789784]
[1740692584409,58.62084846,137.67,137.61,0.04789784]
[1740692585002,7.2749,137.62,137.61,0.04789784]
[1740692586102,60.57524846,137.67,137.61,0.04789784]
[1740692586307,1.33748927,137.66,137.61,0.04789784]
[1740692586612,7.2749,137.62,137.61,0.04789784]
[1740692586808,58.62084846,137.67,137.61,0.04789784]
[1740692587210,7.2749,137.62,137.61,0.04789784]
[1740692588612,80.46084846,137.67,137.61,0.04789784]
[1740692588807,1.33754575,137.66,137.61,0.04789784]
[1740692589305,80.46084846,137.67,137.61,0.04789784]
[1740692590310,7.2739,137.64,137.61,0.04789784]
[1740692590608,80.46084846,137.67,137.61,0.04789784]
[1740692590809,7.2749,137.62,137.61,0.04789784]
[1740692591210,58.62084846,137.67,137.61,0.04789784]
[1740692591813,7.2731,137.66,137.61,0.04789784]
[1740692592014,58.62084846,137.67,137.61,3.87539784]
[1740692592210,210.04,137.69,137.61,3.87539784]
[1740692592411,217.3115,137.69,137.63,7.274]
[1740692592613,210.04,137.69,137.63,7.274]
[1740692592908,194.8235,137.69,137.66,7.2727]
[1740692593109,80.09237375,137.73,137.65,0.05353973]
[1740692594316,12.16,137.74,137.65,0.05353973]
[1740692594515,7.2706,137.71,137.66,7.2727]
[1740692594810,7.2706,137.71,137.61,194.71636756]
[1740692594811,7.2706,137.71,137.68,0.05557408]
[1740692595115,12.16,137.74,137.61,194.71636756]
[1740692595307,12.16,137.74,137.68,0.0466642]
[1740692595512,7.2708,137.7,137.68,0.0466642]
[1740692596814,7.2712,137.69,137.68,6.42e-05]
[1740692600419,50.8912,137.69,137.68,6.42e-05]
[1740692600716,81.70834047,137.69,137.68,6.42e-05]
[1740692600921,59.81834047,137.69,137.68,6.42e-05]
[1740692601314,37.97834047,137.69,137.68,6.42e-05]
[1740692601511,16.19834047,137.69,137.68,6.42e-05]
[1740692602315,8.60864907,137.69,137.68,6.42e-05]
[1740692602619,20.74851765,137.69,137.68,6.42e-05]
[1740692602819,19.4112,137.69,137.68,6.42e-05]
[1740692603922,20.74842626,137.69,137.68,6.42e-05]
[1740692604118,19.4112,137.69,137.68,6.42e-05]
[1740692604421,42.58842328,137.69,137.68,6.42e-05]
[1740692605422,64.36842328,137.69,137.68,6.42e-05]
[1740692605823,64.36872776,137.69,137.68,6.42e-05]
[1740692606727,71.95828122,137.69,137.68,6.42e-05]
[1740692608726,93.78828122,137.69,137.68,6.42e-05]
[1740692609029,92.45075346,137.69,137.68,6.42e-05]
[1740692609228,86.19869733,137.69,137.68,6.42e-05]
[1740692609622,93.78852667,137.69,137.68,6.42e-05]
[1740692610827,93.78852809,137.69,137.68,6.42e-05]
[1740692611631,72.00852809,137.69,137.68,6.42e-05]
[1740692611928,20.74869875,137.69,137.68,6.42e-05]
[1740692613028,19.4112,137.69,137.68,6.42e-05]
[1740692613222,20.74839779,137.69,137.68,6.42e-05]
[1740692613418,7.2712,137.69,137.68,6.42e-05]
[1740692613623,19.4112,137.69,137.68,6.42e-05]
[1740692614727,0.04899859,137.7,137.68,6.42e-05]
[1740692615325,7.31979859,137.7,137.68,6.42e-05]
[1740692616724,7.2712,137.69,137.68,6.42e-05]
[1740692616921,0.04899859,137.7,137.68,6.42e-05]
[1740692617430,7.31999859,137.7,137.68,6.42e-05]
[1740692618127,7.2712,137.69,137.68,6.42e-05]
[1740692621137,11.1307,137.69,137.68,6.42e-05]
[1740692621432,12.46791527,137.69,137.68,6.42e-05]
[1740692621830,34.30791527,137.69,137.68,6.42e-05]
[1740692622833,56.13791527,137.69,137.68,6.42e-05]
[1740692623028,77.91791527,137.69,137.68,6.42e-05]
[1740692623937,77.91836216,137.69,137.68,6.42e-05]
[1740692624636,93.4760589,137.69,137.68,6.42e-05]
[1740692626142,77.91836216,137.69,137.68,6.42e-05]
[1740692626442,56.13836216,137.69,137.68,6.42e-05]
[1740692626643,77.91836216,137.69,137.68,6.42e-05]
[1740692626842,56.13836216,137.69,137.68,6.42e-05]
[1740692627143,54.8007,137.69,137.68,6.42e-05]
[1740692627342,56.13834234,137.69,137.68,6.42e-05]
[1740692627542,63.72858553,137.69,137.68,6.42e-05]
[1740692628241,41.89858553,137.69,137.68,6.42e-05]
[1740692628543,46.44834234,137.69,137.68,6.42e-05]
[1740692628742,24.60834234,137.69,137.68,6.42e-05]
[1740692629139,19.4112,137.69,137.68,6.42e-05]
[1740692630338,0.04899859,137.7,137.68,6.42e-05]
[1740692632835,209.9,137.71,137.68,6.42e-05]
[1740692633640,7.2712,137.69,137.68,6.42e-05]
[1740692638945,29.1112,137.69,137.68,6.42e-05]
[1740692639151,30.44851983,137.69,137.68,6.42e-05]
[1740692639949,8.60851983,137.69,137.68,6.42e-05]
[1740692640148,7.2712,137.69,137.68,6.42e-05]
[1740692640950,209.9,137.71,137.68,6.42e-05]
[1740692641148,197.76,137.71,137.68,6.42e-05]
[1740692641648,191.9934,137.71,137.68,6.42e-05]
[1740692641949,12.14,137.77,137.68,6.42e-05]
[1740692642150,12.14,137.77,137.59,26.6929]
[1740692642363,7.269,137.74,137.71,0.04976702]
[1740692642549,12.14,137.77,137.59,217.58176756]
[1740692642853,12.14,137.77,137.71,0.05267176]
[1740692643052,12.14,137.77,137.68,7.2717]
[1740692643257,12.14,137.77,137.73,0.0519525]
[1740692644051,7.2686,137.74,137.73,0.0519525]
[1740692645555,7.2683,137.75,137.73,0.0519525]
[1740692646254,7.2671,137.77,137.73,0.0519525]
[1740692646455,12.12,137.78,137.73,0.0519525]
[1740692646655,19.3868,137.78,137.73,7.3206525]
[1740692647050,7.2668,137.78,137.74,2.002]
[1740692647256,197.76,137.79,137.74,2.002]
[1740692648555,7.2668,137.78,137.74,2.002]
[1740692649056,197.76,137.79,137.74,2.002]
[1740692649257,7.268,137.76,137.73,0.0519525]
[1740692649457,197.76,137.79,137.73,0.0519525]
[1740692650749,7.2681,137.75,137.73,0.0519525]
[1740692653258,197.76,137.79,137.73,0.0519525]
[1740692653958,7.2678,137.76,137.73,7.3207525]
[1740692654953,7.2686,137.74,137.73,0.0519525]
[1740692655658,7.2686,137.74,137.73,5.25e-05]
[1740692657463,55.74,137.74,137.57,190.88886756]
[1740692657665,3.33071679,137.73,137.56,76.7809721]
[1740692657863,1.33708469,137.72,137.55,39.19916421]
[1740692658065,7.2737,137.65,137.57,7.2775]
[1740692658260,12.12,137.67,137.57,7.2775]
[1740692658457,12.12,137.67,137.55,230.08803177]
[1740692658663,7.32047906,137.63,137.61,0.05425795]
[1740692659257,0.04607906,137.63,137.61,0.05425795]
[1740692660163,0.04607906,137.63,137.55,190.88886756]
[1740692660363,0.04607906,137.63,137.54,78.56602114]
[1740692660364,43.67,137.62,137.54,78.56602114]
[1740692660668,43.67,137.6,137.47,29.59803673]
[1740692660867,7.2796,137.54,137.47,29.59803673]
[1740692661068,1.33794526,137.53,137.47,29.59803673]
[1740692661265,12.12,137.52,137.47,29.59803673]
[1740692661466,0.04908688,137.51,137.49,0.04670715]
[1740692666267,197.7,137.57,137.49,0.04670715]
[1740692666467,12.12,137.59,137.49,0.04670715]
[1740692666671,12.14,137.64,137.44,3.9031]
[1740692666872,1.33805645,137.63,137.44,3.9031]
[1740692667574,0.04950267,137.55,137.52,0.05416192]
[1740692667774,1.33805645,137.62,137.51,3.8036]
[1740692667975,12.14,137.64,137.51,3.8036]
[1740692668178,1.33795394,137.63,137.51,3.8036]
[1740692668371,12.14,137.64,137.51,3.8036]
[1740692668680,8.61245394,137.63,137.51,3.8036]
[1740692668874,1.33795394,137.62,137.56,0.05140183]
[1740692669770,12.14,137.64,137.56,0.05140183]
[1740692669972,1.3378213,137.63,137.56,0.05140183]
[1740692670278,7.2693,137.73,137.56,21.8]
[1740692670576,7.2702,137.71,137.59,7.2761]
[1740692670777,29.41886385,137.74,137.63,0.05501138]
[1740692671075,12.14,137.73,137.64,7.2735]
[1740692671274,12.14,137.73,137.67,0.04656201]
[1740692671476,211.9607,137.75,137.56,1.9317]
[1740692671674,210.0,137.75,137.69,0.05523239]
[1740692671872,210.0,137.75,137.56,1.9317]
[1740692672069,210.0,137.75,137.71,0.05233323]
[1740692672277,210.0,137.75,137.56,129.16790074]
[1740692672473,210.0,137.75,137.72,0.05328158]
[1740692672676,12.14,137.75,137.68,7.2713]
[1740692672873,12.14,137.75,137.69,1.9292]
[1740692673074,12.14,137.75,137.72,0.04942836]
[1740692674278,9.2267,137.79,137.72,0.04942836]
[1740692674476,1.9607,137.79,137.72,0.04942836]
[1740692675470,9.2271,137.79,137.72,0.04942836]
[1740692675670,1.9607,137.79,137.72,0.04942836]
[1740692677076,12.12,137.82,137.72,0.04942836]
[1740692677276,12.12,137.82,137.75,7.2676]
[1740692677476,12.12,137.82,137.76,0.05291231]
[1740692678684,197.8,137.83,137.76,0.05291231]
[1740692678977,197.8,137.83,137.76,7.32091231]
[1740692679379,197.8,137.83,137.76,0.05291231]
[1740692679682,197.8,137.83,137.76,7.32111231]
[1740692680477,197.8,137.83,137.76,0.05291231]